[Event "SixDays Budapest IM-B 10-2024"]
[Site "Budapest"]
[Date "2024.10.02"]
[Round "5.5"]
[White "Nanditha V"]
[Black "Kalosha, Zhiulien Oleksii"]
[Result "0-1"]
[ECO "B43"]
[WhiteElo "1903"]
[BlackElo "2232"]
[Annotator "RC"]
[PlyCount "136"]
[EventDate "2024.09.24"]
[EventType "tourn"]
[EventCountry "HUN"]
[SourceTitle "playchess.com"]
[Source "ChessBase"]
[SourceQuality "1"]
[TimeControl "5400+30"]

1. e4 {[%emt 0:02:56]} c5 {[%emt 0:00:09]} 2. Nf3 {[%emt 0:00:05]} e6 {[%emt 0:00:18]} 3. d4 {[%emt 0:01:32]} cxd4 {[%emt 0:00:10]} 4. Nxd4 {[%emt 0:00:03]} a6 {[%emt 0:00:25]} 5. Nc3 {[%emt 0:00:36]} Qc7 {[%emt 0:00:31]} 6. g3 {[%emt 0:02:35]} Bb4 {[%emt 0:00:53]} 7. Bd2 Nf6 {[%emt 0:01:54]} 8. Bg2 {[%emt 0:00:48]} Nc6 {[%emt 0:00:20]} 9. Nde2 {[%emt 0:03:14]} Be7 {[%emt 0:02:10]} 10. O-O {[%emt 0:00:14]} O-O {[%emt 0:00:23]} 11. Nf4 {[%emt 0:01:19]} d6 {[%emt 0:03:21]} 12. Nce2 {[%emt 0:00:48]} b5 {[%emt 0:02:07]} 13. Rc1 {[%emt 0:00:35]} Ne5 {[%emt 0:06:27]} 14. Nd3 {[%emt 0:02:59]} Bb7 {[%emt 0:01:13]} 15. f3 {[%emt 0:01:54]} Nc4 {[%emt 0:01:24]} 16. b3 {[%emt 0:07:06]} Qb6+ {[%emt 0:04:14]} 17. Kh1 {[%emt 0:00:20]} Ne3 {[%emt 0:04:55]} 18. Bxe3 {[%emt 0:00:41]} Qxe3 {[%emt 0:00:08]} 19. c3 {[%emt 0:04:18]} Qb6 {[%emt 0:08:53]} 20. Qe1 {[%emt 0:01:25]} Rac8 {[%emt 0:00:39]} 21. Qf2 {[%emt 0:00:25]} Qxf2 {[%emt 0:02:27]} 22. Rxf2 {[%emt 0:00:24]} Rc7 {[%emt 0:03:58]} 23. Rff1 {[%emt 0:05:54]} Rfc8 {[%emt 0:01:03]} 24. Kg1 {[%emt 0:01:42]} Nd7 {[%emt 0:07:17]} 25. Rc2 {[%emt 0:01:46]} d5 {[%emt 0:06:11]} 26. exd5 {[%emt 0:01:11]} Bxd5 {[%emt 0:03:05]} 27. f4 {[%emt 0:02:53]} Nb6 {[%emt 0:01:26]} 28. Rfc1 {[%emt 0:07:39]} Ba3 {[%emt 0:05:59]} 29. Rd1 {[%emt 0:00:33]} Bxg2 {[%emt 0:02:58]} 30. Kxg2 {[%emt 0:00:08]} Nd5 {[%emt 0:00:11]} 31. Kf2 {[%emt 0:00:41]} f6 {[%emt 0:01:59]} 32. c4 {[%emt 0:02:46]} bxc4 {[%emt 0:00:57]} 33. Rxc4 {[%emt 0:01:37]} Rxc4 {[%emt 0:00:10]} 34. bxc4 {[%emt 0:00:02]} Rxc4 {[%emt 0:00:20]} 35. Kf3 {[%emt 0:00:07]} Nc3 {[%emt 0:08:11]} 36. Nxc3 {[%emt 0:01:43]} Rxc3 {[%emt 0:00:08]} 37. Rd2 {[%emt 0:00:31]} Kf7 {[%emt 0:00:39]} 38. Ke2 {[%emt 0:00:29]} Kg6 {[%emt 0:02:12]} 39. g4 {[%emt 0:01:17]} Rc4 {[%emt 0:01:44]} 40. Kf3 {[%emt 0:00:53]} a5 {[%emt 0:01:52]} 41. Nf2 {[%emt 0:01:48]} Bc1 {[%emt 0:00:43]} 42. f5+ {[%emt 0:00:49]} exf5 {[%emt 0:00:47]} 43. gxf5+ {[%emt 0:00:05]} Kh5 {[%emt 0:06:17]} 44. Rd5 {[%emt 0:01:57]} Ra4 {[%emt 0:01:21]} 45. Nh1 {[%emt 0:02:17]} Ra3+ {[%emt 0:00:38]} 46. Kg2 {[%emt 0:00:02]} Rxa2+ {[%emt 0:00:22]} 47. Kh3 {[%emt 0:00:02]} Bf4 {[%emt 0:01:03]} 48. Ng3+ {[%emt 0:00:09]} Bxg3 {[%emt 0:03:10]} 49. hxg3 {[%emt 0:00:03]} Kh6 {[%emt 0:01:42]} 50. Rb5 {[%emt 0:01:30]} g6 {[%emt 0:01:46]} 51. fxg6 {[%emt 0:00:50]} hxg6 {[%emt 0:00:08]} 52. Kg4 {[%emt 0:01:18]} Ra4+ {[%emt 0:00:07]} 53. Kf3 {[%emt 0:00:18]} f5 {[%emt 0:00:10]} 54. Re5 {[%emt 0:01:29]} Kg5 {[%emt 0:00:11]} 55. Rc5 {[%emt 0:00:31]} Ra3+ {[%emt 0:00:31]} 56. Kg2 {[%emt 0:00:20]} Kh5 {[%emt 0:00:51]} 57. Kh3 {[%emt 0:00:33]} a4 {[%emt 0:02:20]} 58. Rc4 {[%emt 0:01:18]} Kg5 {[%emt 0:00:45]} 59. Rb4 {[%emt 0:00:42]} Kh6 {[%emt 0:00:54]} 60. Rh4+ {[%emt 0:00:42]} Kg7 {[%emt 0:00:13]} 61. Rb4 {[%emt 0:00:29]} g5 {[%emt 0:00:51]} 62. Kg2 {[%emt 0:02:05]} Kg6 {[%emt 0:00:31]} 63. Rc4 {[%emt 0:00:55]} Ra2+ {[%emt 0:00:31]} 64. Kf3 {[%emt 0:00:29]} g4+ {[%emt 0:00:30]} 65. Kf4 {[%emt 0:01:37]} Rf2+ {[%emt 0:00:13]} 66. Ke5 {[%emt 0:00:05]} Re2+ {[%emt 0:00:13]} 67. Kd5 {[%emt 0:00:27]} a3 {[%emt 0:00:20]} 68. Ra4 {[%emt 0:00:36]} Re3 {[%emt 0:00:13]} 0-1

[Event "SixDays Budapest IM-B 10-2024"]
[Site "Budapest"]
[Date "2024.10.03"]
[Round "6.4"]
[White "Md Imran"]
[Black "To, Nhat Minh"]
[Result "1/2-1/2"]
[ECO "A45"]
[WhiteElo "2337"]
[BlackElo "2300"]
[Annotator "RC"]
[PlyCount "47"]
[EventDate "2024.09.24"]
[EventType "tourn"]
[EventCountry "HUN"]
[SourceTitle "playchess.com"]
[Source "ChessBase"]
[SourceQuality "1"]
[TimeControl "5400+30"]

1. d4 {[%emt 0:09:02]} Nf6 {[%emt 0:00:08]} 2. Bg5 {[%emt 0:00:06]} d5 {[%emt 0:00:44]} 3. e3 {[%emt 0:00:11]} c5 {[%emt 0:00:20]} 4. Bxf6 {[%emt 0:01:23]} gxf6 {[%emt 0:00:05]} 5. dxc5 {[%emt 0:00:10]} e6 {[%emt 0:00:51]} 6. c4 {[%emt 0:00:04]} dxc4 {[%emt 0:00:12]} 7. Qxd8+ {[%emt 0:00:07]} Kxd8 {[%emt 0:00:05]} 8. Bxc4 {[%emt 0:00:03]} Bxc5 {[%emt 0:00:11]} 9. Nf3 {[%emt 0:00:34]} Ke7 {[%emt 0:01:03]} 10. Ke2 {[%emt 0:00:05]} Nc6 {[%emt 0:00:36]} 11. Rc1 {[%emt 0:00:12]} Bb6 {[%emt 0:00:54]} 12. Nc3 {[%emt 0:00:26]} Ne5 {[%emt 0:01:36]} 13. Nxe5 {[%emt 0:00:45]} fxe5 {[%emt 0:00:01]} 14. a4 {[%emt 0:01:07]} a6 {[%emt 0:00:39]} 15. a5 {[%emt 0:00:22]} Ba7 {[%emt 0:00:16]} 16. Bd3 {[%emt 0:02:04]} Bd7 {[%emt 0:00:39]} 17. b4 {[%emt 0:01:24]} f5 {[%emt 0:01:11]} 18. e4 {[%emt 0:00:59]} Rac8 {[%emt 0:01:35]} 19. exf5 {[%emt 0:01:23]} exf5 {[%emt 0:00:50]} 20. Nd5+ {[%emt 0:00:00]} Kd6 {[%emt 0:00:50]} 21. Ne3 {[%emt 0:01:57]} e4 {[%emt 0:02:34]} 22. Bc4 {[%emt 0:00:31]} Ke5 {[%emt 0:05:59]} 23. Rd1 {[%emt 0:02:44]} Bc6 {[%emt 0:04:20]} 24. Rac1 {[%emt 0:02:06]} 1/2-1/2